bitfinex/quotes_ETHUSD_20220226
["timestamp","ask_amount","ask_price","bid_price","bid_amount"]
[1645836204121,0.25,2864.5,2861.7,0.17900481]
[1645836204122,1.21913369,2861.8,2861.7,0.125573]
[1645836204322,0.425,2862.8,2861.8,0.125573]
[1645836204569,2.63677609,2863.2,2861.8,0.17843638]
[1645836204767,0.2066821,2863.2,2861.8,0.17843638]
[1645836204966,0.15344988,2864.9,2861.3,0.08423673]
[1645836204967,2.63677609,2862.5,2861.3,0.08423673]
[1645836205169,2.63677609,2862.5,2861.0,0.17337203]
[1645836205170,1.38521766,2861.5,2861.0,0.17337203]
[1645836205372,0.425,2861.4,2860.8,0.21255015]
[1645836205572,1.80194281,2862.4,2859.4,5.0]
[1645836205573,0.425,2861.3,2859.4,5.0]
[1645836205772,0.25,2860.7,2859.5,0.21460881]
[1645836205969,0.00193668,2860.6,2859.4,5.23704902]
[1645836206277,0.00193668,2860.6,2859.4,4.9]
[1645836206672,0.00193668,2860.6,2859.7,3.11227747]
[1645836206975,0.25,2860.7,2859.4,5.07862201]
[1645836207176,0.00193668,2860.6,2859.4,0.17862201]
[1645836207375,1.88772253,2859.5,2857.8,0.19712771]
[1645836207574,0.1439,2859.1,2857.8,2.771e-05]
[1645836207873,0.25,2858.8,2857.8,2.771e-05]
[1645836208210,0.25,2858.8,2857.1,2.25122491]
[1645836208211,0.25,2858.2,2857.1,2.25122491]
[1645836208416,0.25,2858.2,2855.8,1.40368626]
[1645836208417,24.42283936,2854.3,2854.0,10.23214672]
[1645836208620,1.32902808,2856.5,2856.4,1.86314451]
[1645836208820,0.0123631,2856.9,2856.4,1.86314451]
[1645836208821,0.25,2856.8,2856.4,4.451e-05]
[1645836209420,0.2,2856.8,2856.4,4.451e-05]
[1645836211025,0.024,2857.4,2856.4,0.85998511]
[1645836211225,0.22966398,2858.9,2856.5,11.5]
[1645836211427,0.14,2859.7,2857.2,10.0]
[1645836211428,0.00192754,2859.6,2857.2,10.0]
[1645836211627,0.20401898,2859.7,2857.2,0.9384]
[1645836211628,0.00192754,2859.7,2857.2,0.9384]
[1645836211819,0.21350089,2860.2,2857.3,0.20172858]
[1645836211820,0.1399,2859.6,2857.3,0.20172858]
[1645836212091,1.10987654,2859.2,2857.3,0.36633803]
[1645836212291,1.10987654,2859.2,2857.3,0.5197593]
[1645836212292,0.1399,2859.1,2857.3,0.5197593]
[1645836212498,0.1399,2859.1,2857.5,0.24381055]
[1645836212499,0.25789003,2859.0,2857.5,0.24381055]
[1645836212699,0.20009876,2860.1,2857.7,6.5]
[1645836212896,0.01242066,2860.5,2857.7,6.5]
[1645836212897,0.1399,2858.9,2857.8,0.69657532]
[1645836213103,0.425,2862.6,2857.8,0.69657532]
[1645836213104,5.0,2859.5,2857.8,0.24643667]
[1645836213303,1.08978709,2857.2,2856.9,0.17410637]
[1645836213499,1.08978709,2857.2,2856.4,4.451e-05]
[1645836213500,5.0,2858.8,2856.4,4.451e-05]
[1645836213703,0.01203277,2858.0,2856.4,4.451e-05]
[1645836213900,0.01209422,2857.4,2856.4,4.451e-05]
[1645836214108,0.01203277,2858.0,2856.4,4.451e-05]
[1645836214109,0.01250924,2856.5,2856.4,4.451e-05]
[1645836214301,5.25273268,2856.5,2856.4,4.451e-05]
[1645836214499,0.01246345,2856.5,2856.4,4.451e-05]
[1645836214702,0.16821812,2857.2,2856.7,3.14126913]
[1645836214898,0.425,2857.8,2856.7,3.14126913]
[1645836215098,0.425,2857.8,2856.7,6.913e-05]
[1645836215297,11.5,2857.3,2854.9,0.33129011]
[1645836215502,0.14,2858.2,2854.3,0.15933799]
[1645836215503,0.01242302,2857.6,2856.8,1.0]
[1645836215724,0.1399,2858.5,2857.5,1.0]
[1645836215917,0.1399,2858.6,2855.3,1.08364482]
[1645836216111,0.1399,2858.6,2855.8,0.2928]
[1645836216313,0.1399,2858.6,2855.4,0.35683442]
[1645836216314,0.01272954,2858.3,2855.4,0.35683442]
[1645836216516,0.01272954,2858.3,2855.9,0.2928]
[1645836216517,0.14,2858.2,2855.9,0.2928]
[1645836216731,5.0,2856.7,2855.9,0.2928]
[1645836216918,0.01261573,2857.6,2854.3,0.04263176]
[1645836216919,1.29904866,2855.2,2854.3,0.04263176]
[1645836217216,0.2810342,2857.6,2854.3,3.176e-05]
[1645836217217,0.425,2856.6,2854.3,3.176e-05]
[1645836217416,5.0,2854.6,2853.9,5.46e-06]
[1645836217819,0.04600509,2854.5,2853.9,5.46e-06]
[1645836218216,0.03932265,2855.7,2853.9,5.46e-06]
[1645836218421,0.18651787,2857.2,2854.7,1.0]
[1645836218717,0.28755739,2858.8,2854.7,1.0]
[1645836218718,0.04849,2857.4,2855.0,0.01268933]
[1645836218918,0.04849,2857.4,2855.6,0.35542591]
[1645836219117,0.21317886,2858.5,2855.8,0.35542591]
[1645836219320,0.0485,2858.5,2855.8,0.36758082]
[1645836219561,0.0485,2858.5,2855.8,0.25095767]
[1645836219562,4.69307409,2858.5,2855.8,0.25095767]
[1645836219765,4.69307409,2858.5,2855.2,0.40802654]
[1645836219766,0.0485,2858.5,2855.2,0.40802654]
[1645836219967,0.0485,2858.5,2853.6,15.08529257]
[1645836219968,4.64457409,2857.4,2854.0,0.20206999]
[1645836220164,0.0485,2858.5,2854.2,0.35542591]
[1645836220165,11.5,2856.8,2854.2,0.35542591]
[1645836220360,0.04854,2857.3,2856.8,1.08769913]
[1645836220564,0.04854,2857.4,2856.8,1.08769913]
[1645836220966,0.04854,2858.5,2856.8,1.08769913]
[1645836221170,4.64457409,2857.5,2856.8,1.08769913]
[1645836221370,0.04854,2858.5,2856.8,1.08769913]
[1645836221371,1.14440586,2857.2,2856.8,1.08769913]
[1645836221568,4.64457409,2857.9,2857.1,1.0]
[1645836221772,0.01286121,2858.6,2856.8,1.08769913]
[1645836221773,0.04855,2857.8,2856.8,0.30009913]
[1645836221975,4.64457409,2858.1,2856.8,0.30009913]
[1645836221976,0.04855,2858.0,2856.8,9.913e-05]
[1645836222170,0.04855,2858.0,2856.8,0.30009913]
[1645836222370,4.64457409,2858.3,2856.8,0.30009913]
[1645836222371,0.1399,2858.2,2856.8,9.913e-05]
[1645836222571,0.1399,2859.4,2856.8,9.913e-05]
[1645836222777,0.1399,2859.4,2857.7,0.35542591]
[1645836222972,0.1399,2860.1,2859.0,1.0]
[1645836223209,0.1399,2860.1,2857.1,0.15319323]
[1645836223210,0.1399,2860.1,2858.4,0.00423117]
[1645836223407,0.1399,2860.1,2857.9,0.20681373]
[1645836223613,0.01231244,2859.6,2858.0,0.23303266]
[1645836223813,0.1399,2860.1,2856.5,0.26145425]
[1645836223814,0.01239128,2858.9,2856.5,0.26145425]
[1645836224011,0.01239128,2858.9,2855.6,0.21447573]
[1645836224012,0.1399,2858.8,2855.6,0.21447573]
[1645836224211,4.64457409,2857.4,2855.3,0.34318932]
[1645836224409,4.64457409,2857.4,2855.3,0.15441904]
[1645836224616,4.64457409,2856.9,2854.7,0.16111911]
[1645836224815,4.91907226,2856.9,2854.1,0.21553658]
[1645836225016,4.91907226,2856.9,2853.9,0.20836894]
[1645836225017,5.54551791,2856.9,2853.9,0.20836894]
[1645836225215,5.54551791,2856.9,2853.9,5.46e-06]
[1645836225216,0.18425324,2856.7,2853.9,5.46e-06]
[1645836225414,11.5,2856.8,2853.9,5.46e-06]
[1645836225415,0.01297294,2855.8,2853.9,5.46e-06]
[1645836225617,11.69289428,2856.8,2853.9,5.46e-06]
[1645836225618,4.64457409,2856.4,2853.9,5.46e-06]
[1645836225818,0.22348624,2856.3,2854.2,0.18887197]
[1645836226018,0.0127985,2857.8,2854.7,0.34691373]
[1645836226218,0.20993632,2857.7,2854.8,0.19106126]
[1645836226416,4.64457409,2858.3,2855.9,0.35542591]
[1645836226616,4.64457409,2857.4,2856.1,0.24373474]
[1645836226815,4.64457409,2857.4,2856.1,0.23090768]
[1645836227075,1.10476377,2857.1,2856.1,0.19046121]
[1645836227282,1.10476377,2857.1,2854.9,2.17543]
[1645836227283,4.64457409,2856.6,2855.2,0.19629364]
[1645836227476,0.01290846,2857.3,2854.8,0.02781765]
[1645836227683,0.61114588,2857.2,2854.8,0.02781765]
[1645836227882,0.23257037,2856.2,2854.8,0.02781765]
[1645836228075,0.23257037,2856.2,2853.7,0.16028897]
[1645836228076,4.64457409,2855.2,2854.7,0.5]
[1645836228277,0.21862398,2857.3,2853.4,2.37183682]
[1645836228278,0.26626474,2855.1,2853.4,2.37183682]
[1645836228479,0.01233666,2855.3,2853.4,2.37183682]
[1645836228480,0.21172492,2854.2,2853.4,2.37183682]
[1645836228683,0.21172492,2854.2,2852.5,0.14]
[1645836228684,4.65695131,2854.0,2852.5,0.14]
[1645836228881,0.21406197,2853.9,2852.5,0.14]
[1645836229078,0.16390429,2854.1,2852.5,0.14]
[1645836229274,4.31360141,2853.9,2852.5,0.14]
[1645836229481,1.0,2855.0,2852.5,0.14]
[1645836229482,0.425,2855.0,2852.5,0.14]
[1645836229675,4.31360141,2854.0,2852.5,0.14]
[1645836229882,0.425,2855.6,2852.5,0.14]
[1645836229883,4.31360141,2855.3,2852.5,0.14]
[1645836230278,0.23671256,2855.0,2852.5,0.14]
[1645836230477,0.23671256,2855.0,2852.5,0.58159727]
[1645836230478,1.06857023,2854.4,2852.5,0.58159727]
[1645836230712,4.31360141,2855.1,2852.6,0.43006258]
[1645836230713,1.41420491,2853.9,2852.6,0.43006258]
[1645836230915,4.31360141,2855.1,2852.6,0.43006258]
[1645836230916,0.24804634,2853.8,2852.7,0.20328645]
[1645836231117,3.5,2855.0,2852.5,0.14]
[1645836231118,0.2326348,2853.7,2852.5,0.14]
[1645836231319,4.31360141,2852.8,2852.5,0.14]
[1645836231515,0.2548731,2852.7,2852.5,0.14]
[1645836231715,0.26431131,2853.3,2852.5,0.14]
[1645836231917,1.69100907,2852.6,2852.5,0.14]
[1645836232116,0.14,2852.5,2851.4,0.5]
[1645836232521,0.14,2852.5,2850.6,0.22569604]
[1645836232522,0.22974106,2852.2,2850.8,0.53188702]
[1645836232817,0.23114974,2852.6,2850.9,0.2668146]
[1645836233015,0.3620195,2853.3,2850.9,0.2668146]
[1645836233016,0.25589725,2853.3,2850.9,3.94086574]
[1645836233216,0.63970975,2854.4,2852.0,1.0]
[1645836233217,0.24709513,2853.1,2852.0,1.0]
[1645836233417,0.17349183,2854.3,2852.0,1.0]
[1645836233418,0.24546666,2853.0,2852.0,1.0]
[1645836233717,0.15533664,2854.2,2852.0,1.0]
[1645836233718,0.3620195,2852.1,2852.0,1.0]
[1645836234116,1.80675699,2852.1,2852.0,1.0]
[1645836234316,1.69660614,2852.1,2852.0,1.0]
[1645836234758,0.25186865,2852.1,2852.0,1.0]
[1645836234958,0.20766941,2852.1,2852.0,1.0]
[1645836235167,0.19952411,2853.5,2852.0,1.1402]
[1645836235362,0.18115682,2853.5,2852.1,1.0]
[1645836235563,0.3620195,2852.7,2852.2,0.1401]
[1645836235767,0.3620195,2852.7,2851.0,0.5]
[1645836235768,0.16762191,2853.7,2852.0,1.0]
[1645836235965,0.425,2853.6,2851.0,0.5]
[1645836236172,5.0,2853.0,2851.0,0.5]
[1645836236467,5.0,2853.0,2850.4,3.7511972]
[1645836236468,5.0,2852.1,2850.4,3.7511972]
[1645836236667,12.16026268,2852.9,2850.4,3.7511972]
[1645836236668,0.01210932,2851.8,2850.4,3.7511972]
[1645836236869,0.17880295,2852.2,2850.4,3.7511972]
[1645836237071,0.425,2852.4,2850.4,3.6511972]
[1645836237567,0.425,2852.4,2849.8,0.02289775]
[1645836237568,5.0,2851.5,2849.8,0.02289775]
[1645836237773,0.01279653,2852.1,2849.8,0.02289775]
[1645836237774,0.01227723,2851.2,2849.8,0.02289775]
[1645836237967,0.01227723,2851.2,2848.2,0.148298]
[1645836237968,11.5,2851.0,2848.2,0.148298]
[1645836238200,11.5,2851.0,2847.5,0.1403]
[1645836238201,3.925,2850.9,2849.1,8.268e-05]
[1645836238405,0.425,2850.8,2849.1,8.268e-05]
[1645836238602,5.0,2851.1,2849.1,8.268e-05]
[1645836238603,0.5845897,2850.7,2849.1,8.268e-05]
[1645836238807,3.5,2851.0,2849.1,8.268e-05]
[1645836238808,5.425,2850.6,2849.1,8.268e-05]
[1645836239012,0.01274222,2850.5,2849.1,8.268e-05]
[1645836239212,0.425,2850.6,2849.1,8.268e-05]
[1645836239410,0.20092614,2850.7,2848.3,0.1403]
[1645836239411,0.64242423,2850.5,2848.3,0.1403]
[1645836239619,0.63005517,2850.4,2847.7,0.01269453]
[1645836239807,5.24762362,2850.7,2848.0,1.0]
[1645836239808,0.01270877,2849.0,2848.0,1.0]
[1645836240010,0.425,2849.0,2848.0,1.0]
[1645836240415,0.19609412,2849.6,2849.1,0.12610278]
[1645836240609,4.0,2850.7,2849.1,0.12610278]
[1645836240610,0.425,2850.3,2849.1,0.12610278]
[1645836240806,5.0,2851.7,2849.1,0.12610278]
[1645836240807,0.425,2850.4,2849.1,0.12610278]
[1645836241010,0.5,2850.5,2849.3,1.0]
[1645836241211,0.01206942,2851.3,2849.5,1.75445]
[1645836241412,0.19363088,2852.5,2849.7,0.1827824]
[1645836241609,0.425,2852.9,2849.7,0.1827824]
[1645836241610,1.0,2852.9,2849.7,0.1827824]
[1645836241806,0.01268377,2852.5,2851.1,1.0]
[1645836242260,0.01268377,2852.5,2849.6,0.3]
[1645836242468,0.01268377,2852.5,2849.2,0.22008971]
[1645836242469,0.38096021,2852.5,2849.2,0.22008971]
[1645836242662,0.00181005,2851.9,2850.7,3.111e-05]
[1645836242865,11.5,2850.7,2848.0,0.0125559]
[1645836243067,3.925,2850.6,2848.0,0.0125559]
[1645836243283,4.80304,2850.6,2848.0,0.0125559]
[1645836243464,0.16323609,2850.4,2848.0,0.0125559]
[1645836243663,0.425,2850.3,2848.1,1.0]
[1645836243863,1.91323027,2850.1,2848.1,1.0]
[1645836244069,1.91323027,2850.1,2848.2,0.07337514]
[1645836244070,0.425,2850.0,2848.2,0.07337514]
[1645836244267,1.03636819,2849.1,2848.8,1.0]
[1645836244467,3.5,2850.6,2848.2,0.07337514]
[1645836244468,1.14554659,2849.9,2848.2,0.07337514]
[1645836244670,5.0,2849.3,2847.4,0.04035261]
[1645836244867,5.0,2848.7,2847.6,0.5]
[1645836245066,1.16890343,2849.1,2846.7,0.04433158]
[1645836245067,1.25803577,2848.3,2846.7,0.04433158]
[1645836245270,1.25803577,2848.3,2846.4,0.1404]
[1645836245271,5.0,2847.7,2846.4,0.1404]
[1645836245470,1.21527193,2845.5,2844.7,0.19472077]
[1645836245726,0.01259757,2847.4,2844.4,0.52613901]
[1645836245727,12.53068405,2846.8,2844.5,0.48785949]
[1645836245912,12.53068405,2846.8,2845.5,1.0]
[1645836245913,0.22033205,2846.6,2845.5,1.0]
[1645836246114,0.22033205,2846.6,2845.6,0.18984584]
[1645836246314,0.24412131,2847.0,2845.6,0.20525476]
[1645836246511,0.21636973,2847.0,2846.2,1.0]
[1645836246717,5.0,2847.5,2846.2,1.0]
[1645836246915,0.67861033,2847.0,2844.4,0.16406934]
[1645836247116,0.20371873,2846.8,2844.1,0.19443129]
[1645836247316,0.27898175,2846.7,2845.5,0.5]
[1645836247517,0.87933,2846.4,2846.3,3.411e-05]
[1645836247919,1.50211143,2846.4,2846.3,3.411e-05]
[1645836248119,0.425,2847.2,2846.3,3.411e-05]
[1645836248422,0.425,2847.5,2844.6,0.01224621]
[1645836248620,3.925,2847.4,2844.5,0.18339336]
[1645836248916,3.925,2847.4,2844.3,0.18655183]
[1645836248917,0.1550446,2847.3,2844.3,0.18655183]
[1645836249116,0.425,2847.2,2845.3,1.0]
[1645836249967,0.0733,2847.7,2845.4,0.23392418]
[1645836250168,0.0733,2847.7,2845.3,0.16057077]
[1645836250169,0.0733,2847.7,2846.3,1.0]
[1645836250574,0.0733,2847.7,2843.8,0.18850424]
[1645836250575,0.01282432,2846.4,2843.8,0.18850424]
[1645836250771,0.01282432,2846.4,2846.1,1.0]
[1645836250978,0.01282432,2846.4,2843.8,3.65895996]
[1645836250979,9.0,2846.3,2843.8,3.65895996]
[1645836251174,5.425,2846.2,2843.7,3.7511972]
[1645836251394,0.01259362,2845.7,2843.7,3.7511972]
[1645836251579,1.01826837,2845.0,2843.7,3.7511972]
[1645836251779,1.14069725,2845.5,2845.2,0.20458157]
[1645836251981,0.3331,2846.6,2845.2,0.20458157]
[1645836252383,0.3331,2846.6,2845.3,1.0]
[1645836252384,0.00194507,2846.4,2845.3,1.0]
[1645836252777,0.00194507,2846.4,2845.2,0.20458157]
[1645836252978,1.34252369,2846.4,2845.6,1.0]
[1645836253426,1.34252369,2846.4,2843.8,7.01493]
[1645836253427,1.1194531,2844.9,2843.8,7.01493]
[1645836253629,0.01249486,2845.7,2845.2,6.223e-05]
[1645836253630,1.07088284,2845.4,2845.2,6.223e-05]
[1645836253824,0.3331,2846.6,2845.2,6.223e-05]
[1645836254022,2.9156,2846.5,2845.2,6.223e-05]
[1645836254422,2.9156,2846.5,2844.5,0.35567199]
[1645836254622,2.9156,2846.5,2844.6,0.2693552]
[1645836254822,2.9156,2846.5,2844.6,0.47111302]
[1645836255323,2.9156,2846.5,2844.7,0.00080602]
[1645836255530,2.9156,2846.5,2844.3,0.89175706]
[1645836255531,1.2270864,2844.4,2841.9,3.51613]
[1645836255728,0.1693634,2846.3,2841.7,1.33642408]
[1645836255729,1.40756913,2843.1,2841.7,1.33642408]
[1645836255931,4.67051976,2844.3,2843.3,1.46851074]
[1645836256133,0.07410602,2844.2,2843.3,1.46851074]
[1645836256326,4.6579,2844.3,2843.3,1.46851074]
[1645836256530,4.6579,2844.3,2843.4,0.1406]
[1645836257185,4.6579,2844.3,2843.3,1.46851074]
[1645836257389,4.6579,2844.3,2843.7,0.00621357]
[1645836257984,4.6579,2844.3,2843.3,1.46851074]
[1645836257985,0.27801311,2843.9,2843.3,1.46851074]
[1645836258187,0.21310915,2843.9,2843.3,1.46851074]
[1645836258395,4.6579,2844.3,2843.3,1.46851074]
[1645836258396,4.6579,2844.3,2843.9,1.318e-05]
[1645836258592,4.6579,2844.3,2841.8,2.25935]
[1645836258593,12.65311459,2843.6,2841.8,0.5]
[1645836258792,3.41389885,2843.0,2841.9,0.1406]
[1645836259092,3.42658173,2842.0,2840.0,10.0]
[1645836259291,3.42658173,2842.0,2838.0,3.6959188]
[1645836259292,3.41389885,2841.2,2838.0,3.6959188]
[1645836259489,12.35450012,2841.9,2838.0,3.6959188]
[1645836259490,0.425,2841.1,2838.2,0.36773039]
[1645836259687,1.76222,2840.5,2839.4,0.18229491]
[1645836259890,3.73445522,2840.4,2839.4,0.18229491]
[1645836260087,3.73445522,2840.4,2839.5,0.04092648]
[1645836260088,0.90820663,2840.3,2839.5,0.04092648]
[1645836260291,0.90820663,2840.3,2837.3,0.26088768]
[1645836260292,11.72238471,2840.0,2837.6,0.38021453]
[1645836260490,11.72238471,2840.0,2839.0,1.58610115]
[1645836260491,0.22238471,2840.0,2839.0,1.58610115]
[1645836260749,0.22238471,2840.0,2837.0,0.1086372]
[1645836260750,0.17362042,2839.8,2837.0,0.1086372]
[1645836260948,0.17362042,2839.8,2836.1,3.5239559]
[1645836260949,3.41389885,2838.0,2835.0,10.24391971]
[1645836261158,3.41389885,2838.0,2834.1,0.01213771]
[1645836261159,3.41389885,2837.0,2834.7,0.23145327]
[1645836261342,0.01228056,2837.7,2835.1,0.00572256]
[1645836261343,3.41389885,2836.4,2835.1,0.00572256]
[1645836261527,0.425,2836.3,2834.8,0.141]
[1645836261732,0.99254933,2836.7,2835.2,0.1409]
[1645836261927,0.19714849,2836.4,2835.7,0.00621033]
[1645836262126,4.8874,2836.6,2835.8,0.1409]
[1645836262526,0.1564581,2837.1,2836.5,1.58610115]
[1645836262826,2.50047852,2839.0,2836.0,0.25199564]
[1645836262827,0.1602796,2837.8,2837.0,1.58610115]
[1645836263027,3.5,2840.4,2838.1,1.9702138]
[1645836263230,1.0,2840.4,2839.1,1.58610115]
[1645836263426,1.0,2840.4,2839.8,1.58610115]
[1645836263630,0.5,2841.2,2840.3,1.58610115]
[1645836263832,0.86151693,2842.3,2840.3,0.21223525]
[1645836263833,1.03874327,2842.3,2840.3,0.21223525]
[1645836264037,1.03874327,2842.3,2839.9,1.40830826]
[1645836264038,0.125573,2842.3,2840.1,1.58610115]
[1645836264233,0.125573,2842.3,2840.0,0.19918145]
[1645836264462,0.125573,2842.3,2839.9,0.18832684]
[1645836264463,0.125573,2842.3,2840.7,0.2173232]
[1645836264667,1.11099721,2842.1,2840.7,0.2173232]
[1645836264863,0.125573,2842.3,2840.6,1.59167253]
[1645836265064,0.125573,2842.3,2840.7,0.25279296]
[1645836265265,0.125573,2842.3,2840.6,0.00557138]
[1645836265266,3.65052784,2842.9,2841.5,1.58610115]
[1645836265470,1.01196059,2843.0,2841.6,0.26344116]
[1645836265471,0.8163,2843.0,2841.6,0.26344116]
[1645836265669,0.8163,2843.0,2842.2,1.82781353]
[1645836265870,0.1945154,2844.0,2843.1,0.94954966]
[1645836266071,1.1414,2845.2,2843.1,1.13659195]
[1645836266269,1.1414,2845.2,2844.8,1.58610115]
[1645836266470,1.1414,2845.2,2844.6,1.58610115]
[1645836266676,0.01246205,2846.2,2843.6,1.58610115]
[1645836266872,0.00210556,2844.3,2843.6,1.58610115]
[1645836267073,0.00210556,2844.3,2843.5,0.22367656]
[1645836267272,0.00210556,2844.3,2843.1,1.43143349]
[1645836267273,1.38211099,2843.7,2843.1,0.03669773]
[1645836267477,3.41389885,2843.4,2843.1,9.773e-05]
[1645836267672,0.01214802,2843.2,2843.1,9.773e-05]
[1645836267873,0.01214802,2843.2,2840.8,1.58610115]
[1645836267874,11.5,2843.2,2842.5,7.34e-06]
[1645836268073,3.37604687,2842.9,2840.2,0.88012]
[1645836268323,0.01275981,2842.6,2839.8,1.81597673]
[1645836268526,0.01275981,2842.6,2840.4,1.62395313]
[1645836268723,0.88051,2843.3,2840.4,1.62395313]
[1645836268724,0.29240668,2843.5,2840.9,4.70759332]
[1645836268924,0.29240668,2843.5,2841.0,0.37334922]
[1645836269121,0.15622332,2843.4,2841.7,0.452]
[1645836269529,0.16904465,2843.4,2841.7,0.452]
[1645836269728,6.68606579,2844.1,2841.7,0.452]
[1645836269729,0.01262693,2844.3,2843.3,4.70759332]
[1645836270031,6.60806146,2846.8,2843.5,0.23476582]
[1645836270032,0.16314997,2846.1,2843.5,0.23476582]
[1645836270227,0.29240668,2845.8,2843.4,0.1949282]
[1645836270424,0.21698685,2846.1,2843.4,0.01246711]
[1645836270622,0.21698685,2846.1,2842.9,0.1406]
[1645836270623,0.425,2846.0,2842.9,0.24574183]
[1645836270828,0.425,2846.0,2842.5,4.94251673]
[1645836270829,0.21253799,2845.0,2842.5,4.94251673]
[1645836271027,0.17779823,2845.2,2842.6,0.1406]
[1645836271028,0.17527091,2844.8,2842.6,0.1406]
[1645836271224,0.17527091,2844.8,2842.2,0.1406]
[1645836271225,0.29240668,2844.4,2842.2,0.1406]
[1645836271527,0.29240668,2844.4,2842.0,0.01286966]
[1645836271528,0.1842473,2844.3,2842.1,0.1406]
[1645836271728,0.15542695,2844.4,2842.0,0.01253858]
[1645836271996,0.64295319,2845.1,2842.0,0.01253858]
[1645836271997,0.20027193,2845.0,2842.0,0.01253858]
[1645836272192,0.20027193,2845.0,2842.2,4.70759332]
[1645836272392,0.425,2845.1,2842.3,0.1406]
[1645836272597,3.5,2845.5,2842.3,0.1406]
[1645836272598,0.16879999,2845.3,2843.1,4.70759332]
[1645836272800,4.13579638,2845.5,2843.6,4.70759332]
[1645836272801,0.63579638,2845.5,2843.6,4.70759332]
[1645836272994,0.0129573,2846.0,2843.7,0.10121263]
[1645836272995,0.34600668,2845.8,2843.7,0.10121263]
[1645836273195,0.19182819,2845.6,2843.8,0.0406]
[1645836273395,0.19182819,2845.6,2843.8,0.1406]
[1645836273593,0.17956515,2845.4,2843.8,0.1406]
[1645836273802,1.0,2845.5,2843.8,0.35395958]
[1645836274000,0.00217259,2844.8,2844.5,4.70759332]
[1645836274201,0.00217259,2844.8,2844.7,5.70759332]
[1645836274394,0.00217259,2844.8,2844.7,5.90659954]
[1645836274600,0.00217259,2844.8,2844.7,6.90659954]
[1645836274801,0.00217259,2844.8,2844.7,1.0]
[1645836274996,0.29240668,2846.6,2844.7,1.0]
[1645836274997,0.01249634,2846.5,2844.7,1.0]
[1645836275194,1.0,2846.3,2844.3,0.21010012]
[1645836275399,1.0,2846.3,2845.0,1.0]
[1645836275600,0.37117983,2846.4,2843.9,1.0]
[1645836275821,1.01161748,2845.2,2844.9,1.0]
[1645836276020,0.18961603,2846.1,2844.9,1.0]
[1645836276219,0.18961603,2846.1,2843.7,0.10121263]
[1645836276419,0.18961603,2846.1,2844.2,1.0]
[1645836276420,0.29240668,2845.3,2844.2,1.0]
[1645836276619,0.21844797,2845.4,2844.2,1.0]
[1645836276820,1.0,2845.1,2843.9,1.0]
[1645836277225,1.0,2845.1,2843.9,1.23341125]
[1645836277419,1.0,2845.1,2844.3,1.0]
[1645836277821,0.16285355,2846.3,2844.3,1.0]
[1645836278021,1.19886364,2846.2,2844.4,0.1405]
[1645836278220,0.16619212,2846.1,2844.4,0.1405]
[1645836278424,0.16619212,2846.1,2843.1,5.48108523]
[1645836278425,1.0,2845.2,2842.0,0.01263425]
[1645836278721,1.0,2845.2,2840.7,51.70540469]
[1645836278722,0.20199599,2844.2,2841.2,0.01260336]
[1645836278924,0.64138799,2844.3,2841.7,0.25626241]
[1645836279123,0.64138799,2844.3,2842.4,0.00614791]
[1645836279124,0.425,2844.3,2842.4,0.00614791]
[1645836279323,1.18503424,2842.5,2842.4,0.00614791]
[1645836279587,0.88018,2843.8,2842.4,0.00614791]
[1645836279588,0.37008241,2842.6,2842.4,4.791e-05]
[1645836279795,0.16407357,2843.6,2840.3,0.01290125]
[1645836279988,0.16407357,2843.6,2842.6,0.40182327]
[1645836279989,3.06651,2843.6,2842.6,0.40182327]
[1645836280186,0.70767232,2843.2,2842.6,0.40182327]
[1645836280387,0.70767232,2843.2,2842.6,2.327e-05]
[1645836280591,0.425,2843.1,2842.6,2.327e-05]
[1645836280788,0.58484975,2843.1,2842.6,2.327e-05]
[1645836280990,0.425,2843.1,2842.6,2.327e-05]
[1645836281196,0.425,2843.1,2840.3,0.2094638]
[1645836281197,11.5,2842.6,2838.8,1.40825916]
[1645836281399,11.5,2842.6,2839.9,4.96308346]
[1645836281400,0.012987,2841.9,2839.9,4.96308346]
[1645836281595,0.425,2842.1,2840.3,4.96308346]
[1645836281791,0.20517631,2842.2,2840.4,0.1406]
[1645836281792,1.22821214,2841.1,2840.4,0.1406]
[1645836281991,1.22821214,2841.1,2840.3,4.96308346]
[1645836282193,0.425,2842.2,2840.3,4.96308346]
[1645836282495,0.425,2842.2,2840.4,0.1406]
[1645836282694,0.425,2842.2,2839.8,0.00350635]
[1645836282695,0.276258,2842.0,2840.2,0.1406]
[1645836282893,0.276258,2842.0,2839.8,0.00350635]
[1645836282894,0.19550763,2841.8,2839.8,0.00350635]
[1645836283092,1.09941474,2840.2,2839.8,0.00350635]
[1645836283322,0.15568837,2841.9,2840.2,1.12893332]
[1645836283527,1.18514378,2842.3,2840.8,0.01249154]
[1645836283528,1.0,2842.3,2840.8,0.01249154]
[1645836283725,0.62301618,2842.4,2840.8,0.01249154]
[1645836283726,0.425,2842.4,2840.8,0.01249154]
[1645836283930,0.425,2842.4,2840.2,1.12893332]
[1645836283931,0.725,2842.4,2840.7,1.0]
[1645836284129,0.725,2842.4,2840.2,1.12893332]
[1645836284130,0.43224256,2842.2,2840.3,0.1406]
[1645836284327,0.425,2842.1,2840.3,0.1406]
[1645836284529,0.425,2842.1,2840.2,1.12893332]
[1645836284530,0.425,2842.1,2840.4,4.96308346]
[1645836284731,0.425,2842.1,2840.2,1.12893332]
[1645836285136,0.425,2842.1,2841.1,0.00620245]
[1645836285327,1.17138112,2841.3,2841.1,0.00620245]
[1645836285526,0.425,2842.1,2841.1,0.00620245]
[1645836285729,0.76191654,2842.1,2840.7,1.597e-05]
[1645836285937,0.76191654,2842.1,2840.2,1.12893332]
[1645836285938,2.26989969,2841.4,2840.2,1.12893332]
[1645836286142,0.85355854,2841.3,2840.2,1.12893332]
[1645836286337,0.03691654,2840.8,2840.6,0.02481391]
[1645836286531,0.425,2840.7,2840.6,0.02481391]
[1645836286733,0.425,2841.0,2840.6,0.02481391]
[1645836286980,0.01658875,2841.2,2840.6,0.02481391]
[1645836287179,0.01658875,2841.2,2840.0,4.96308346]
[1645836287180,0.5,2841.9,2839.7,1.0]
[1645836287383,0.425,2842.2,2840.1,0.1408]
[1645836287587,0.17536754,2842.1,2840.1,0.1408]
[1645836287793,0.17536754,2842.1,2839.7,0.00572256]
[1645836287794,0.58186499,2842.0,2839.7,0.00572256]